Cogmind - Beta 13 @@@ ROGUE MODE // 2024.04.25 @ 16:00:00 Player: Michael Result: Destroyed by D-53 Grenadier with Mini Grenade Launcher Performance ------------- Evolutions (0) 0 Regions Visited (2) 400 Robots Destroyed (10) 50 Value Destroyed (250) 250 Prototype IDs (0) 0 Alien Tech Used (0) 0 Bonus (0) 0 TOTAL SCORE: 700 Bonus ------- None Cogmind --------- Core Integrity 0/250 Matter 300/300 Energy 93/100 System Corruption 0% Temperature Cool (0) Movement Core (50) Location -10/Mines Parts ------- > --- POWER (1) -------- (None) > --- PROPULSION (2) --- (None) > --- UTILITY (2) ------ Improved Heat Sink > --- WEAPON (2) ------- Light Assault Rifle > --- INVENTORY (5) ---- Heat Sink Sensor Array EM Pulse Gun Assault Rifle Light Cannon Peak State ------------ > --- POWER ------------ Ion Engine > --- PROPULSION ------- Light Treads Light Treads > --- UTILITY ---------- Improved Heat Sink Large Storage Unit > --- WEAPON ----------- Beam Cannon Light Assault Rifle > --- INVENTORY -------- Ion Engine Light Ion Engine Heat Sink Heat Sink Sensor Array Targeting Computer Targeting Computer Targeting Computer EM Pulse Gun EM Pulse Gun Assault Rifle Light Assault Rifle Light Cannon Light Cannon Grenade Launcher [Rating: 10] Favorites ----------- Power Ion Engine Engine Ion Engine Propulsion Light Treads Treads Light Treads Leg Aluminum Leg Wheel Wheel Utility Large Storage Unit Device Improved Heat Sink Storage Large Storage Unit Weapon EM Pulse Gun Energy Gun EM Pulse Gun Energy Cannon Beam Cannon Ballistic Gun Assault Rifle Build | -11 -10 -10 ------- Run | Yrd Mat Min Slots Evolved . | . . . Power . | . . . Propulsion . | . . . Utility . | . . . Weapon . | . . . Parts Attached 15 | 8 6 1 Power 2 | 1 1 . Engine 2 | 1 1 . Core . | . . . Reactor . | . . . Propulsion 6 | 4 2 . Treads 2 | . 2 . Leg 2 | 2 . . Wheel 2 | 2 . . Hover . | . . . Flight . | . . . Utility 3 | 1 1 1 Device 1 | . . 1 Storage 2 | 1 1 . Processor . | . . . Hackware . | . . . Protection . | . . . Artifact . | . . . Weapon 4 | 2 2 . Energy Gun 1 | 1 . . Energy Cannon 1 | . 1 . Ballistic Gun 2 | 1 1 . Ballistic Cannon . | . . . Launcher . | . . . Special Weapon . | . . . Impact Weapon . | . . . Slashing Weapon . | . . . Piercing Weapon . | . . . Special Melee Weapon . | . . . Unidentified Prototypes . | . . . Parts Lost 5 | . 1 4 Power 1 | . . 1 Propulsion 3 | . 1 2 Utility . | . . . Weapon 1 | . . 1 Highest Loss Streak 4 | . 1 4 To Critical Strikes . | . . . Average Slot Usage (%) 84 | . 83 89 Engine 13 | . 14 12 Treads 19 | . 19 26 Wheel 7 | . 7 . Storage 14 | . 14 14 Energy Gun 11 | . 12 . Energy Cannon 2 | . 1 14 Ballistic Gun 14 | . 14 14 Naked Turns . | . . . Heaviest Build 30 | 14 29 30 Greatest Support 40 | 26 40 40 Greatest Overweight (x) 2 | . 2 1 Average Overweight (x) . | . . . Largest Inventory Capacity 15 | 8 15 15 Average Capacity 13 | 7 13 14 Most Carried 15 | 8 15 15 Average Carried 10 | 5 10 14 Final Capacity 15 | 8 15 5 Final Carried 15 | 6 15 5 Class Distribution -------------------- 100% | Mutant Dominant Class ---------------- Mutant | -10/Materials Mutant | -10/Mines Resources | -11 -10 -10 ----------- Run | Yrd Mat Min Matter Collected 401 | 213 156 32 Remotely . | . . . Salvage Created 318 | . 318 . Parts 19 | . 19 . Haulers Intercepted . | . . . Recyclers Shooed . | . . . Parts Field Recycled . | . . . Retrieved Matter . | . . . Parts Self-Destructed . | . . . Prevented . | . . . Kills | -11 -10 -10 ------- Run | Yrd Mat Min Combat Hostiles Destroyed 9 | . 9 . Guns 7 | . 7 . AOE 2 | . 2 . Classes Destroyed 3 | . 3 . Watcher 1 | . 1 . Swarmer 3 | . 3 . Grunt 6 | . 6 . Best Kill Streak 3 | . 3 . Combat Bots Only 3 | . 3 . Max Kills in Single Turn 1 | . 1 . Gunslinging . | . . . Exploded 1 | . 1 . Melee . | . . . Uniques/NPCs Destroyed . | . . . Combat | -11 -10 -10 -------- Run | Yrd Mat Min Hostile Shots Fired 50 | . 25 25 Missed 10 | . 9 1 Damage Taken 1051 | . 195 856 Core 264 | . 34 230 Absorbed by Shields . | . . . Core Remaining (%) 100 | 100 . . Volleys Fired 23 | . 18 5 Largest 2 | . 2 2 Hottest 80 | . 60 80 Shots Fired 46 | . 36 10 Gun 41 | . 36 5 Cannon 5 | . . 5 Launcher . | . . . Special . | . . . Kinetic 23 | . 18 5 Thermal 5 | . . 5 Explosive . | . . . Electromagnetic 18 | . 18 . Robot Hit Streak 6 | . 6 6 Robot Miss Streak 2 | . 2 2 Penetration Max . | . . . Secondary Targets 2 | . 2 . Max Gunslinging Chain 1 | . 1 . Shots Hit Robots 31 | . 25 6 Core Hits 14 | . 13 1 Critical Kills . | . . . Critical Parts Destroyed 2 | . 2 . Critical Strikes 2 | . 2 . Destroy 2 | . 2 . Melee Attacks . | . . . Impact . | . . . Slashing . | . . . Piercing . | . . . Sneak Attacks . | . . . Combat Hostiles . | . . . Follow-up Attacks . | . . . Damage Inflicted 475 | . 408 67 Guns 360 | . 327 33 Cannons 34 | . . 34 Explosions 81 | . 81 . Melee . | . . . Ramming . | . . . Kinetic 154 | . 121 33 Thermal 115 | . 81 34 Explosive . | . . . Electromagnetic 206 | . 206 . Impact . | . . . Slashing . | . . . Piercing . | . . . Highest Corruption . | . . . Average Corruption . | . . . Corruption Purged . | . . . Corruption Blocked . | . . . Overload Shots . | . . . Overflow Damage . | . . . Projectiles . | . . . Explosions . | . . . Melee . | . . . Knockbacks . | . . . Impact . | . . . Kinetic . | . . . Secondary . | . . . Self-Inflicted Damage . | . . . Shots . | . . . Rammed . | . . . Targets Rammed . | . . . Kicked . | . . . Crushed . | . . . Highest Temperature 66 | . 42 66 Average Temperature 20 | . 18 24 Received Heat Transfer 93 | . 72 21 Siege Activations . | . . . Robots Corrupted . | . . . Combat Hostiles . | . . . Parts Fried 1 | . 1 . Impact Corruptions . | . . . Robots Melted . | . . . Combat Hostiles . | . . . Parts Melted . | . . . Heat Transferred 124 | . 50 74 Parts Sabotaged . | . . . Parts Stolen . | . . . Parts Stripped . | . . . Power Chain Reactions 1 | . 1 . Alert | -11 -10 -10 ------- Run | Yrd Mat Min Peak Influence 175 | . 175 9 Initial 9 | . . 9 Average 37 | . 42 7 Maximum Alert Level . | . . . Low Security (%) 100 | 100 100 100 Level 1 . | . . . Level 2 . | . . . Level 3 . | . . . Level 4 . | . . . Level 5 . | . . . High Security . | . . . Max Security . | . . . Squads Dispatched 3 | . 3 . Investigation 2 | . 2 . Extermination . | . . . Reinforcement 1 | . 1 . Assault . | . . . Garrison . | . . . Intercept . | . . . Searches Triggered . | . . . Construction Impeded . | . . . Haulers Reinforced . | . . . Active Scanning Responses . | . . . Cargo Convoy Interrupts . | . . . Stealth | -11 -10 -10 --------- Run | Yrd Mat Min Distress Signals 1 | . 1 . Communications Jammed . | . . . Distress Signals . | . . . Times Spotted 20 | . 13 7 Peak Tracking Total 9 | . 4 9 Tactical Retreats 2 | . 2 . Traps | -11 -10 -10 ------- Run | Yrd Mat Min Traps Triggered 1 | . 1 . Indirectly . | . . . Trap Hack Attempts . | . . . Triggered . | . . . Disarmed . | . . . Reprogrammed . | . . . Reused . | . . . Traps Extracted . | . . . Installed . | . . . Triggered 1 | . 1 . Machines | -11 -10 -10 ---------- Run | Yrd Mat Min Machines Disabled . | . . . Max in Single Turn . | . . . Machines Repaired . | . . . Machines Dismantled . | . . . Machines Sabotaged . | . . . Overloaded Fab Kills . | . . . Hacking | -11 -10 -10 --------- Run | Yrd Mat Min Machines Accessed 7 | . 7 . Terminals 4 | . 4 . Fabricators . | . . . Repair Stations 1 | . 1 . Recycling Units 2 | . 2 . Scanalyzers . | . . . Garrison Access . | . . . Total Hacks 17 | . 17 . Successful 8 | . 8 . Failed 9 | . 9 . Catastrophic 1 | . 1 . Database Lockouts . | . . . Manual . | . . . Terminals 8 | . 8 . Fabricators . | . . . Repair Stations 3 | . 3 . Recycling Units 6 | . 6 . Scanalyzers . | . . . Garrison Access . | . . . Terminal Hacks 4 | . 4 . Record 1 | . 1 . Locate Traps 1 | . 1 . Zone Layout 2 | . 2 . Fabricator Hacks . | . . . Repair Station Hacks 1 | . 1 . Scan Component 1 | . 1 . Recycling Unit Hacks 3 | . 3 . Report Inventory 2 | . 2 . Retrieve Components 1 | . 1 . Scanalyzer . | . . . Garrison Access Hacks . | . . . Unauthorized Hacks . | . . . Terminals . | . . . Fabricators . | . . . Repair Stations . | . . . Recycling Units . | . . . Scanalyzers . | . . . Garrison Access . | . . . Data Cores Recovered . | . . . Used . | . . . Hacking Detections 4 | . 4 . Full Trace Events 2 | . 2 . Feedback Events . | . . . Feedback Blocked . | . . . Robot Schematics Acquired . | . . . Robots Built . | . . . Authchips . | . . . Time . | . . . Total Robot Build Rating . | . . . Part Schematics Acquired . | . . . Parts Built . | . . . Authchips . | . . . Time . | . . . Total Part Build Rating . | . . . Parts Repaired . | . . . Time . | . . . Parts Recycled . | . . . Recycled Matter . | . . . Retrieved Matter . | . . . Retrieved Components 1 | . 1 . Parts Scanalyzed . | . . . Part Schematics Acquired . | . . . Parts Damaged . | . . . Bothacking | -11 -10 -10 ------------ Run | Yrd Mat Min Used RIF Installer . | . . . Robots Hacked . | . . . Non-combat . | . . . Combat . | . . . Robot Hacks Applied . | . . . Relay Couplers Released . | . . . Fabnet Peak Effective % . | . . . Robots Rewired . | . . . Allies Hacked . | . . . Hacks Repelled . | . . . Allies | -11 -10 -10 -------- Run | Yrd Mat Min Total Allies . | . . . Largest Group . | . . . Highest-Rated Group . | . . . Highest-Rated Ally . | . . . Total Orders . | . . . Ally Attacks . | . . . Total Damage . | . . . Kills . | . . . Allies Corrupted . | . . . Allies Melted . | . . . Intel | -11 -10 -10 ------- Run | Yrd Mat Min Robot Analysis Total . | . . . Derelict Logs Recovered 1 | . . 1 Drone Launches . | . . . Drone Recoveries . | . . . Exploration | -11 -10 -10 ------------- Run | Yrd Mat Min Turns Passed 1203 | 64 1072 67 Spaces Moved 792 | 51 710 31 Core 13 | 12 . 1 Treads 446 | . 416 30 Legs 11 | 11 . . Wheels 322 | 28 294 . Hover . | . . . Flight . | . . . Fastest Speed 50 | 50 90 50 Average Speed 131 | 87 133 164 Slowest Speed 240 | 120 160 240 Overloaded Moves . | . . . Propulsion Burnouts . | . . . Robots Hopped . | . . . Cave-ins Triggered . | . . . Exploration Rate (%) 38 | 4 95 16 Regions Visited 2 Branch Regions 1 Pre-discovered Areas . | . . . Known Exits Taken . | . . . Unknown Exits Taken 2 | 1 1 . Scrap Searched . | . . . Spaces Dug . | . . . Terrain Destroyed 3 | . 3 . Melee . | . . . Projectile . | . . . AOE 3 | . 3 . Terrain Rammed . | . . . Walls Destroyed . | . . . Machines Disabled . | . . . Actions | -11 -10 -10 --------- Run | Yrd Mat Min Total 903 | 68 797 38 Wait 43 | . 43 . Move 790 | 50 709 31 Hop . | . . . Pick Up 25 | 10 15 . Fast Attach 4 | 2 1 1 Attach 6 | 4 2 . Detach . | . . . Swap 5 | 2 3 . Drop 7 | . 6 1 Fire 23 | . 18 5 Melee . | . . . Ram . | . . . Kick . | . . . Crush . | . . . Escape Stasis . | . . . Rewire . | . . . Trap . | . . . Miscellaneous . | . . . Route ------- -11/Scrapyard -10/Materials (discovered 4 exits: [*Mat x3] / [*Min]) -10/Mines History --------- Turn | Location | Event 40 | -11/Scrapyard | Discovered new exit (range 15) 65 | -11/Scrapyard | Entered Materials 152 | -10/Materials | Met 8R-AWN 156 | -10/Materials | Discovered new exit (range 16) 179 | -10/Materials | Discovered new exit (range 14) 314 | -10/Materials | Build established: Mutant 471 | -10/Materials | Discovered new exit (range 15) 708 | -10/Materials | Discovered new exit (range 8) 1137 | -10/Materials | Entered Mines 1139 | -10/Mines | Followed 8R-AWN into the Mines 1173 | -10/Mines | Assembled infested the area 1175 | -10/Mines | Learned 2 Materials zone layouts 1199 | -10/Mines | Core integrity fell below 50% 1204 | -10/Mines | Core integrity fell below 20% 1204 | -10/Mines | Destroyed by D-53 Grenadier with Mini Grenade Launcher Last Messages --------------- Unit. 01181_ U-05 Engineer lays Concrete. 01183_ R-06 Scavenger collects Sml. Laser. 01184_ U-05 Engineer lays Concrete. 01185_ R-06 Scavenger destroyed. 01185_ U-05 Engineer lays Concrete. 01191_ Ion Engine destroyed. 01191_ U-05 Engineer lays Concrete. 01192_ The unstable cave ceiling collapses. 01192_ U-05 Engineer lays Concrete. 01192_ U-05 Engineer destroyed. 01194_ The unstable cave ceiling collapses. 01194_ U-05 Engineer lays Concrete. 01195_ Lgt. Treads destroyed. 01195_ U-05 Engineer destroyed. 01197_ The unstable cave ceiling collapses. 01200_ Beam Cannon destroyed. 01201_ The unstable cave ceiling collapses. 01201_ Lgt. Treads destroyed. 01203_ Dropped Lrg. Storage Unit. Map ----- +----------------------------------------------------+ | ????????????????????????????????????????????????? | | ????????????????????????????????????????????????? | | ????????????????????????????????????????????????? | | ????????????????????????????????????????????????? | | ????????????????????????????????????????????????? | | ????????????????????????????????????????????????? | | ????????????????????????????????????????????????? | | ????????????????????????????????????????????????? | | ????????????????????????????????????????????????? | | ????????????????????????????????????????????????? | | ????????????????????????????????????????????????? | | ????????????????????????????????????????????????? | | ????????????????????????????????????????????????? | | ??????????????? ????##?????????????????????????? | | ????????????? #?### ?????????????????????????? | | ????????????? ## ????????????????????????? | | ???????????? ????????????????????????? | | ???????????? ????????????????????????? | | ?????????????? ????????????????????????? | | ??????????????? ????????????????????????? | | ????????????????# ????????######??????????? | | ?????????????????# ?##???? ???????????? | | ??????????????????? # ###? ?????????????? | | ???????????????????## ## #???????????????? | | ???????????????????# #???????????????? | | ???????????????????## @] #### ##????????? | | ???????????????????# [*!*! #????????? | | ??????????????????## !] % ???????? | | ?????????????????## % d###r ????????? | | ????????????###### d #???????????????? | | ???????????## # ##??????????????? | | ???????????# #??????????????? | | ???????????# # #?????????????? | | ??????????## = # #????????????? | | ??????????# = # #????????????? | | ??????????# =% ### ##????????????? | | ??????????##=*% ### ###?????????????? | | ???????????##[! ##?##### #???????????????? | | ????????????### #??????# #???????????????? | | ??????????????# #??????# % ??????????????? | | ??????????????# #??????# ?????????????? | | ??????????????# #???????# ####?????????????? | | ?????????????? #????????# ##????????????????? | | ??????????????###?????????## ##?????????????????? | | ???????????????????????????? #??????????????????? | | ?????????????????????????????#??????????????????? | | ????????????????????????????????????????????????? | | ????????????????????????????????????????????????? | | ????????????????????????????????????????????????? | | ????????????????????????????????????????????????? | +----------------------------------------------------+ Best States ------------- Heat Dissipation 39 Energy Generation 10 Energy Capacity 250 Matter Stores 300 Matter Capacity 300 Sight Range 16 Terrain Scan Density 10 Evasion (%) 50 Recoil Reduction 2 Item Schematics ----------------- None Robot Schematics ------------------ None Fabricated ------------ Nothing Alien Tech Used ----------------- None Achievements -------------- None Challenges ------------ None Game ------ Seed DataTransportWheel Manual? 0 Play Time 00:13:12 Cumulative 17.4 hours Start 2024.04.25 @ 15:48:05 End 2024.04.25 @ 16:00:00 Sessions 1 Manual Loads 0 Difficulty Rogue Special Mode None Game No. 23 Rogue 22 Adventurer 1 Explorer 0 Win Type - Total 0 Types 0/0/0/0/0/0/0/0/0 Lore% 6 Gallery% 18 Achievement% 18 Wizard Run 0 Options --------- Layout 1 ASCII 0 Keyboard 0 Movement Mouse Keybinds 0 Fullscreen 2 Font 32/Terminus Map View 50x35 Zoom Use 0% Tactical HUD 1 Map Filters NONE Filters NONE Steam 1 RUN: b2b824de-31d0-4f62-bdfe-5c4e504686a5